bitfinex/quotes_ETHUSD_20230105
["timestamp","ask_amount","ask_price","bid_price","bid_amount"]
[1672889446242,25.07034898,1254.3,1254.2,7.97321]
[1672889446449,14.10454898,1254.3,1254.2,8.03921]
[1672889454700,14.10454898,1254.3,1254.2,0.066]
[1672889454910,14.10454898,1254.3,1254.1,27.91297185]
[1672889454911,14.10454898,1254.3,1254.1,27.97897185]
[1672889455162,14.10454898,1254.3,1254.1,32.70725661]
[1672889462400,14.10454898,1254.3,1254.1,32.70525661]
[1672889462622,14.10454898,1254.3,1254.1,32.70725661]
[1672889463609,14.10454898,1254.3,1254.1,27.97897185]
[1672889465237,14.10454898,1254.3,1254.1,27.97697185]
[1672889465467,14.10454898,1254.3,1254.1,27.97897185]
[1672889467025,14.10454898,1254.3,1254.1,27.97659748]
[1672889470298,3.58531788,1254.2,1254.1,27.97659748]
[1672889470523,3.58531788,1254.2,1254.1,33.27425723]
[1672889473487,3.58531788,1254.2,1254.1,17.32661723]
[1672889473661,3.58531788,1254.2,1254.1,12.02895748]
[1672889475864,3.58531788,1254.2,1254.1,20.00279748]
[1672889483063,3.58531788,1254.2,1254.1,12.02895748]
[1672889487351,3.58531788,1254.2,1254.1,4.05545748]
[1672889487559,3.58531788,1254.2,1254.1,3.98945748]
[1672889489472,13.97939289,1254.2,1254.1,0.00030797]
[1672889489714,14.04057803,1254.2,1254.1,0.00030797]
[1672889490181,18.54057803,1254.2,1254.1,0.00030797]
[1672889490386,14.36264349,1254.2,1254.1,0.00030797]
[1672889490983,0.00187287,1254.1,1254.0,25.066]
[1672889491148,3.58798487,1254.1,1254.0,25.066]
[1672889492222,0.00187287,1254.1,1254.0,25.066]
[1672889494082,3.58798487,1254.1,1254.0,25.066]
[1672889494445,0.00187287,1254.1,1254.0,25.066]
[1672889505417,0.00187287,1254.1,1254.0,33.38426509]
[1672889509305,0.00187287,1254.1,1254.0,25.40978509]
[1672889510209,0.00187287,1254.1,1254.0,33.38426509]
[1672889512136,0.00187287,1254.1,1254.0,19.38426509]
[1672889514569,0.00187287,1254.1,1254.0,33.38426509]
[1672889515669,0.00187287,1254.1,1254.0,25.40978509]
[1672889515670,3.58798487,1254.1,1254.0,25.40978509]
[1672889515920,0.00187287,1254.1,1254.0,25.40978509]
[1672889520294,3.58798487,1254.1,1254.0,25.40978509]
[1672889520662,0.00187287,1254.1,1254.0,25.40978509]
[1672889521253,3.58798487,1254.1,1254.0,25.40978509]
[1672889522036,0.00187287,1254.1,1254.0,25.40978509]
[1672889522555,3.58798487,1254.1,1254.0,33.38426509]
[1672889530698,3.58798487,1254.1,1254.0,25.40978509]
[1672889532858,3.58798487,1254.1,1254.0,17.40764713]
[1672889533056,5.35814632,1254.1,1254.0,17.40764713]
[1672889533301,5.41933146,1254.1,1254.0,17.40764713]
[1672889540849,3.64917001,1254.1,1254.0,17.40764713]
[1672889541080,3.58798487,1254.1,1254.0,17.40764713]
[1672889548782,3.58511552,1254.1,1254.0,17.40764713]
[1672889550829,11.55895552,1254.1,1254.0,17.40764713]
[1672889551003,11.62014066,1254.1,1254.0,17.40764713]
[1672889551354,3.64630066,1254.1,1254.0,17.40764713]
[1672889551678,3.58511552,1254.1,1254.0,17.40764713]
[1672889552709,11.55895552,1254.1,1254.0,17.40764713]
[1672889552895,11.62014066,1254.1,1254.0,17.40764713]
[1672889555033,11.62014066,1254.1,1254.0,47.06429935]
[1672889555034,3.64630066,1254.1,1254.0,47.06429935]
[1672889555347,3.58511552,1254.1,1254.0,47.06429935]
[1672889556488,3.64630066,1254.2,1254.0,47.06429935]
[1672889556733,3.58511552,1254.2,1254.0,47.06429935]
[1672889560721,3.58511552,1254.1,1254.0,47.06429935]
[1672889561020,3.58511552,1254.1,1254.0,45.32023664]
[1672889562807,0.002,1254.1,1254.0,45.31823664]
[1672889562979,3.58511552,1254.2,1254.0,45.32023664]
[1672889563399,3.58511552,1254.2,1254.0,51.4530273]
[1672889564230,3.58511552,1254.2,1254.1,3.98914951]
[1672889570903,3.58511552,1254.2,1254.1,11.96298951]
[1672889571060,3.58511552,1254.2,1254.1,12.02647273]
[1672889573586,3.58511552,1254.2,1254.1,4.05263273]
[1672889573796,3.58511552,1254.2,1254.1,3.98663273]
[1672889577116,3.58511552,1254.2,1254.1,11.96047273]
[1672889577273,3.58511552,1254.2,1254.1,12.02647273]
[1672889577686,3.58511552,1254.2,1254.1,4.05263273]
[1672889577895,3.58511552,1254.2,1254.1,11.96047273]
[1672889578145,3.58511552,1254.2,1254.1,12.02647273]
[1672889580055,3.58511552,1254.2,1254.1,20.00031273]
[1672889580753,3.58511552,1254.2,1254.1,12.02647273]
[1672889581175,3.58511552,1254.2,1254.1,4.05263273]
[1672889581504,3.58511552,1254.2,1254.1,3.98663273]
[1672889581719,3.58511552,1254.2,1254.1,11.96047273]
[1672889581930,3.58511552,1254.2,1254.1,12.02647273]
[1672889582107,3.58711552,1254.2,1254.1,12.02447273]
[1672889582318,3.58511552,1254.2,1254.1,12.02647273]
[1672889584964,3.58511552,1254.2,1254.1,4.05263273]
[1672889585193,3.58511552,1254.2,1254.1,3.98663273]
[1672889589044,3.58511552,1254.2,1254.1,11.96047273]
[1672889589254,3.58511552,1254.2,1254.1,12.02647273]
[1672889590258,6.58980364,1254.2,1254.1,0.066]
[1672889590469,6.65098878,1254.2,1254.1,7.97384]
[1672889590658,3.64630066,1254.2,1254.1,8.03984]
[1672889590876,3.58511552,1254.2,1254.1,8.03984]
[1672889593148,3.58511552,1254.2,1254.1,8.03605666]
[1672889595352,3.58511552,1254.2,1254.1,8.03405666]
[1672889595353,3.58711552,1254.2,1254.1,8.03405666]
[1672889595684,3.58511552,1254.2,1254.1,8.03605666]
[1672889602126,3.58511552,1254.2,1254.1,0.066]
[1672889602341,3.58511552,1254.2,1254.0,41.14146204]
[1672889602665,3.58511552,1254.2,1254.0,45.13061155]
[1672889603283,3.58511552,1254.2,1254.0,37.15643155]
[1672889612209,3.58511552,1254.2,1254.0,45.13091155]
[1672889613843,5.49611552,1254.1,1254.0,0.066]
[1672889614056,22.69619968,1254.1,1253.8,44.356]
[1672889614362,22.69619968,1254.1,1253.8,4.05217038]
[1672889614363,13.47478749,1254.0,1253.8,4.05217038]
[1672889614585,32.11385735,1254.0,1253.8,3.98914951]
[1672889615205,24.13911735,1254.0,1253.8,3.98914951]
[1672889615425,16.16437735,1254.0,1253.8,3.98914951]
[1672889617055,16.16068719,1254.0,1253.8,3.98914951]
[1672889617520,16.16068719,1254.0,1253.7,30.20640087]
[1672889617838,16.16068719,1254.0,1253.7,42.17193038]
[1672889617839,8.18615719,1254.0,1253.7,42.17193038]
[1672889619368,8.18615719,1254.0,1253.7,50.14831038]
[1672889619828,8.18615719,1254.0,1253.7,38.18278087]
[1672889619994,1.904,1253.8,1253.7,0.06302087]
[1672889620210,2.0944,1253.8,1253.6,103.3679069]
[1672889620404,1.904,1253.8,1253.6,73.0779069]
[1672889625358,1.904,1253.8,1253.6,65.1011669]
[1672889625626,1.904,1253.8,1253.6,57.1244269]
[1672889625763,1.904,1253.8,1253.6,43.1244269]
[1672889625980,1.903,1253.7,1253.6,49.1478869]
[1672889626205,6.403,1253.7,1253.6,14.1478869]
[1672889626436,6.46418514,1253.7,1253.6,14.1478869]
[1672889628183,1.96418514,1253.7,1253.6,14.1478869]
[1672889628436,1.903,1253.7,1253.6,14.1478869]
[1672889629445,3.86002166,1253.7,1253.6,14.1478869]
[1672889629658,16.33640166,1253.7,1253.6,14.1478869]
[1672889629920,16.3975868,1253.7,1253.6,14.1478869]
[1672889630126,11.8975868,1253.7,1253.6,14.1478869]
[1672889630503,3.9212068,1253.7,1253.6,14.1478869]
[1672889630714,3.86002166,1253.7,1253.6,14.1478869]
[1672889630984,11.83640166,1253.7,1253.6,14.1478869]
[1672889631155,11.8975868,1253.7,1253.6,14.1478869]
[1672889631339,19.8739668,1253.7,1253.6,14.1478869]
[1672889631864,11.8975868,1253.7,1253.6,14.1478869]
[1672889632075,3.9212068,1253.7,1253.6,14.1478869]
[1672889632363,3.86002166,1253.7,1253.6,14.1478869]
[1672889633351,11.83640166,1253.7,1253.6,14.1478869]
[1672889633567,27.8503468,1253.7,1253.6,14.1478869]
[1672889633776,27.8503468,1253.7,1253.6,0.1478869]
[1672889633984,19.8739668,1253.7,1253.6,0.08486603]
[1672889635084,11.8975868,1253.7,1253.6,0.08486603]
[1672889635897,1.96418514,1253.7,1253.6,0.08486603]
[1672889636102,1.903,1253.7,1253.6,0.08486603]
[1672889636292,1.903,1253.7,1253.6,0.03486603]
[1672889639442,9.87938,1253.7,1253.6,0.03486603]
[1672889639757,1.96418514,1253.7,1253.6,0.03486603]
[1672889640123,4.68261851,1253.7,1253.6,0.03486603]
[1672889640326,28.61175851,1253.7,1253.6,0.03486603]
[1672889640479,12.72018365,1253.7,1253.6,0.03486603]
[1672889640961,4.74380365,1253.7,1253.6,0.03486603]
[1672889641110,4.68261851,1253.7,1253.6,0.03486603]
[1672889641995,28.61175851,1253.7,1253.6,0.03486603]
[1672889642156,22.61056365,1253.7,1253.6,0.03486603]
[1672889642371,30.58694365,1253.7,1253.6,0.03486603]
[1672889643170,22.61056365,1253.7,1253.6,0.03486603]
[1672889644818,22.84056365,1253.7,1253.6,0.03486603]
[1672889645362,6.88780365,1253.7,1253.6,0.03486603]
[1672889646318,4.98480365,1253.7,1253.6,0.03486603]
[1672889646464,4.92361851,1253.7,1253.6,0.03486603]
[1672889650931,20.87637851,1253.7,1253.6,0.03486603]
[1672889651263,12.96118365,1253.7,1253.6,0.03486603]
[1672889654358,12.96118365,1253.7,1253.6,0.35264316]
[1672889654523,12.73118365,1253.7,1253.6,0.35264316]
[1672889654711,0.06118514,1253.7,1253.6,0.35264316]
[1672889654922,7.97638,1253.7,1253.6,0.35264316]
[1672889655133,16.01394514,1253.7,1253.6,0.35264316]
[1672889659499,8.03756514,1253.7,1253.6,0.35264316]
[1672889659723,0.06118514,1253.7,1253.6,17.62868316]
[1672889659885,25.96124267,1253.9,1253.6,21.6821939]
[1672889660075,25.96124267,1253.9,1253.6,1.73766403]
[1672889660285,41.91171267,1253.9,1253.6,1.67464316]
[1672889660807,3.57755753,1253.8,1253.6,1.67132375]
[1672889661690,49.88724267,1253.9,1253.6,1.67132375]
[1672889661863,51.13124193,1253.9,1253.6,1.67132375]
[1672889662075,3.57755753,1253.8,1253.6,0.34932375]
[1672889663597,3.57755753,1253.8,1253.6,8.32631375]
[1672889663791,3.57755753,1253.8,1253.6,8.38933462]
[1672889665599,3.57755753,1253.8,1253.6,0.41234462]
[1672889665784,3.57755753,1253.8,1253.6,0.34932375]
[1672889665977,3.57755753,1253.8,1253.6,8.32634375]
[1672889666188,3.57755753,1253.8,1253.6,8.38936462]
[1672889666398,25.96124267,1253.9,1253.7,14.0]
[1672889666657,3.63874267,1253.9,1253.8,23.92725]
[1672889666802,3.57755753,1253.9,1253.8,23.99027087]
[1672889667011,4.23724267,1254.0,1253.8,27.65846265]
[1672889667248,4.17605753,1254.0,1253.8,27.65846265]
[1672889668097,3.57755753,1254.0,1253.8,27.65846265]
[1672889669268,3.57755753,1254.0,1253.8,31.64761216]
[1672889669499,25.36194267,1254.1,1253.9,4.5]
[1672889670221,25.36194267,1254.1,1253.8,31.64761216]
[1672889670584,25.36194267,1254.1,1253.8,23.67186216]
[1672889674155,33.33581267,1254.1,1253.8,15.69611216]
[1672889675524,25.36194267,1254.1,1253.8,23.67186216]
[1672889678556,3.57755753,1254.0,1253.8,0.06302087]
[1672889678767,7.97511,1253.9,1253.8,3.0]
[1672889678920,23.98651514,1253.9,1253.8,3.0]
[1672889679133,27.54039041,1253.9,1253.7,17.06302087]
[1672889679486,23.98651514,1253.9,1253.7,17.06102087]
[1672889679813,23.98651514,1253.9,1253.7,17.06302087]
[1672889680759,23.98651514,1253.9,1253.7,17.06047319]
[1672889680969,27.56407267,1253.9,1253.7,0.06047319]
[1672889681293,27.56407267,1253.9,1253.6,30.81546541]
[1672889681610,31.11794794,1253.9,1253.6,4.51461492]
[1672889681753,33.33873794,1253.9,1253.6,0.36553222]
[1672889681964,41.31384794,1253.9,1253.6,3.34932375]
[1672889682433,41.91234794,1253.9,1253.6,3.34932375]
[1672889685154,41.91234794,1253.9,1253.6,0.49152375]
[1672889685553,41.91234794,1253.9,1253.6,0.34932375]
[1672889686131,45.08743794,1253.9,1253.6,0.34932375]
[1672889688152,53.06254794,1253.9,1253.6,0.34932375]
[1672889691896,53.06254794,1253.9,1253.6,0.29932375]
[1672889694629,58.96569745,1253.9,1253.6,0.29932375]
[1672889694843,8.07755753,1253.7,1253.6,0.29932375]
[1672889695170,31.82539584,1253.7,1253.6,0.29932375]
[1672889695522,36.83193038,1253.7,1253.6,0.29932375]
[1672889695735,32.65399584,1253.7,1253.6,0.29932375]
[1672889695887,4.5,1253.6,1253.4,30.46188819]
[1672889696099,1.914,1253.5,1253.4,30.46188819]
[1672889696362,25.84698,1253.5,1253.4,0.17188819]
[1672889696578,17.93050514,1253.5,1253.4,0.111415]
[1672889696728,14.05544769,1253.5,1253.4,0.111415]
[1672889696938,6.07778769,1253.5,1253.4,0.111415]
[1672889697415,6.07778769,1253.5,1253.4,24.046285]
[1672889697609,1.97518514,1253.5,1253.4,24.10675819]
[1672889697817,1.914,1253.5,1253.4,24.10675819]
[1672889698005,1.914,1253.5,1253.4,0.17188819]
[1672889698220,1.914,1253.5,1253.4,0.111415]
[1672889704255,2.5127,1253.5,1253.4,0.111415]
[1672889704564,4.64798867,1253.5,1253.4,0.111415]
[1672889705295,2.73398867,1253.5,1253.4,0.111415]
[1672889707658,2.73042422,1253.5,1253.4,0.111415]
[1672889707927,12.84108422,1253.5,1253.4,0.111415]
[1672889708081,20.87992936,1253.5,1253.4,0.111415]
[1672889708554,28.85758936,1253.5,1253.4,0.111415]
[1672889708771,28.62758936,1253.5,1253.4,0.111415]
[1672889708988,20.64992936,1253.5,1253.4,0.111415]
[1672889710939,20.87992936,1253.5,1253.4,0.111415]
[1672889713150,12.90226936,1253.5,1253.4,0.111415]
[1672889713360,17.40226936,1253.5,1253.4,0.111415]
[1672889713931,25.37992936,1253.5,1253.4,0.111415]
[1672889714731,17.40226936,1253.5,1253.4,0.111415]
[1672889716853,9.42460936,1253.5,1253.4,0.111415]
[1672889717599,17.40226936,1253.5,1253.4,0.111415]
[1672889717983,25.37992936,1253.5,1253.4,0.111415]
[1672889718193,33.35758936,1253.5,1253.4,0.111415]
[1672889718407,43.4176512,1253.5,1253.4,0.111415]
[1672889718669,47.59181748,1253.5,1253.4,0.111415]
[1672889719177,47.59181748,1253.5,1253.2,0.18935155]
[1672889719386,1.914,1253.3,1253.2,0.18935155]
[1672889719702,7.80455867,1253.3,1253.2,0.18935155]
[1672889719857,7.86574381,1253.3,1253.2,0.18935155]
[1672889720277,15.84467381,1253.3,1253.2,0.18935155]
[1672889720520,15.89467381,1253.3,1253.2,0.18935155]
[1672889720748,15.84467381,1253.3,1253.2,0.18935155]
[1672889721170,7.86574381,1253.3,1253.2,0.18935155]
[1672889721383,15.84467381,1253.3,1253.2,0.18935155]
[1672889721537,3.8765943,1253.3,1253.2,0.18935155]
[1672889721742,3.81540916,1253.3,1253.2,0.18935155]
[1672889724443,3.81540916,1253.3,1253.2,0.50415223]
[1672889729070,15.78348867,1253.3,1253.2,0.50415223]
[1672889729237,20.34467381,1253.3,1253.2,0.50415223]
[1672889729666,28.32360381,1253.3,1253.2,0.50415223]
[1672889729929,20.34467381,1253.3,1253.2,0.50415223]
[1672889730312,28.32360381,1253.3,1253.2,0.50415223]
[1672889730675,20.34467381,1253.3,1253.2,0.50415223]
[1672889730850,28.32360381,1253.3,1253.2,0.50415223]
[1672889731069,20.34467381,1253.3,1253.2,0.50415223]
[1672889731800,23.82360381,1253.3,1253.2,0.50415223]
[1672889732132,15.84467381,1253.3,1253.2,0.50415223]
[1672889732659,7.86574381,1253.3,1253.2,0.18935155]
[1672889732851,7.91574381,1253.3,1253.2,0.18935155]
[1672889733030,7.86574381,1253.3,1253.2,0.18935155]
[1672889734779,7.86574381,1253.3,1253.2,8.16892155]
[1672889734920,3.6465943,1253.3,1253.2,0.24982474]
[1672889735130,19.54326916,1253.3,1253.2,0.18935155]
[1672889735390,19.6044543,1253.3,1253.2,0.18935155]
[1672889735853,0.06118514,1253.3,1253.2,0.18935155]
[1672889736068,13.60512723,1253.4,1253.2,8.16892155]
[1672889736279,13.60512723,1253.4,1253.2,0.24982474]
[1672889736489,10.03698514,1253.4,1253.2,0.18935155]
[1672889736700,18.62786478,1253.4,1253.2,0.18935155]
[1672889736965,0.05,1253.3,1253.2,0.18935155]
[1672889737156,0.06118514,1253.4,1253.2,0.18935155]
[1672889737498,21.78389552,1253.5,1253.2,24.14353549]
[1672889737649,21.78389552,1253.5,1253.2,24.20400868]
[1672889738538,19.0534713,1253.5,1253.2,24.20400868]
[1672889738754,15.48532921,1253.5,1253.2,24.20400868]
[1672889739505,3.63062921,1253.5,1253.2,24.20400868]
[1672889739646,7.13758616,1253.5,1253.2,24.20400868]
[1672889739856,7.1987713,1253.5,1253.2,24.20400868]
[1672889740066,7.1987713,1253.5,1253.2,26.64205089]
[1672889740864,3.62932723,1253.5,1253.2,26.64205089]
[1672889741009,3.56814209,1253.5,1253.2,26.64205089]
[1672889742059,3.56814209,1253.5,1253.2,26.63827359]
[1672889742959,4.03236076,1253.6,1253.2,30.6274231]
[1672889743285,14.82402723,1253.7,1253.4,23.93487]
[1672889743590,3.62932723,1253.7,1253.4,23.99534319]
[1672889743779,3.56814209,1253.7,1253.4,27.49272551]
[1672889744329,3.56814209,1253.7,1253.4,19.51443551]
[1672889745433,3.56814209,1253.7,1253.4,11.53614551]
[1672889745642,11.54455209,1253.7,1253.4,11.53614551]
[1672889745908,11.60573723,1253.7,1253.4,14.03614551]
[1672889746115,11.60573723,1253.7,1253.4,11.53614551]
[1672889747215,0.05,1253.5,1253.4,11.55316523]
[1672889747469,11.60573723,1253.7,1253.4,11.55316523]
[1672889749315,19.58214723,1253.7,1253.4,0.07749291]
[1672889749534,3.56814209,1253.6,1253.3,3.0]
[1672889749744,15.95532,1253.5,1253.3,3.0]
[1672889750066,16.01650514,1253.5,1253.3,3.0]
[1672889752137,23.99416514,1253.5,1253.3,3.0]
[1672889752282,27.54813986,1253.5,1253.3,3.0]
[1672889753445,11.59281986,1253.5,1253.3,3.0]
[1672889753917,0.06118514,1253.5,1253.3,3.0]
[1672889754138,10.87688514,1253.6,1253.3,26.93648]
[1672889754346,10.27818514,1253.6,1253.3,26.99695319]
[1672889759227,10.27818514,1253.6,1253.3,27.01235707]
[1672889763593,10.27818514,1253.6,1253.3,27.00927168]
[1672889770189,14.44741286,1253.6,1253.3,27.00927168]
[1672889771242,18.01555495,1253.6,1253.3,27.00927168]
[1672889772531,18.01555495,1253.6,1253.3,19.03034168]
[1672889774733,3.56814209,1253.5,1253.3,3.0573878]
[1672889774944,12.68060704,1253.5,1253.3,2.99691461]
[1672889775149,23.93487,1253.4,1253.2,35.70904744]
[1672889775417,27.56419723,1253.4,1253.2,30.53604744]
[1672889775627,27.56419723,1253.4,1253.2,0.24604744]
[1672889775841,27.56419723,1253.4,1253.2,3.18557425]
[1672889776014,31.57964445,1253.4,1253.2,3.18557425]
[1672889776222,31.57964445,1253.4,1253.2,0.18557425]
[1672889778548,23.60135445,1253.4,1253.2,0.18557425]
[1672889778726,15.62306445,1253.4,1253.2,0.18557425]
[1672889779573,23.60135445,1253.4,1253.2,0.18557425]
[1672889779779,37.09479396,1253.4,1253.2,0.18557425]
[1672889780030,8.06814209,1253.3,1253.2,0.18557425]
[1672889780198,25.63413874,1253.3,1253.2,0.18557425]
[1672889780732,16.72335083,1253.3,1253.2,0.18557425]
[1672889780944,12.55640874,1253.3,1253.2,0.18557425]
[1672889781314,4.57747874,1253.3,1253.2,0.18557425]
[1672889781483,4.5162936,1253.3,1253.2,0.18557425]
[1672889786144,4.5162936,1253.3,1253.2,8.16514425]
[1672889786354,14.81063236,1253.4,1253.2,24.18475744]
[1672889786583,14.21183236,1253.4,1253.2,24.18475744]
[1672889786804,14.21183236,1253.4,1253.2,16.20518744]
[1672889787680,14.21183236,1253.4,1253.2,0.24604744]
[1672889787877,18.71183236,1253.4,1253.2,0.18317077]
[1672889788092,14.21183236,1253.4,1253.2,0.18317077]
[1672889788675,14.21183236,1253.4,1253.2,8.16249077]
[1672889788870,14.21183236,1253.4,1253.2,8.22296396]
[1672889789735,14.21183236,1253.4,1253.2,0.24364396]
[1672889789876,14.21183236,1253.4,1253.2,0.18317077]
[1672889790091,14.21183236,1253.4,1253.2,8.16264077]
[1672889790297,14.21183236,1253.4,1253.2,8.22311396]
[1672889790656,25.75855445,1253.4,1253.2,0.24364396]
[1672889790821,25.75855445,1253.4,1253.1,0.17641339]
[1672889790822,41.71542445,1253.4,1253.1,0.17641339]
[1672889791451,33.73684445,1253.4,1253.1,0.17641339]
[1672889791876,37.72599396,1253.4,1253.1,0.17641339]
[1672889792138,29.74741396,1253.4,1253.1,8.15660339]
[1672889792303,29.74741396,1253.4,1253.1,8.21707658]
[1672889792514,4.5,1253.3,1253.1,8.21707658]
[1672889792731,3.4247414,1253.3,1253.1,8.21707658]
[1672889792992,3.4247414,1253.3,1253.1,0.23688658]
[1672889793164,3.4247414,1253.3,1253.1,0.17641339]
[1672889795365,3.4247414,1253.3,1253.0,27.85132664]
[1672889796536,3.4747414,1253.3,1253.0,27.85132664]
[1672889796725,3.4247414,1253.3,1253.0,27.85132664]
[1672889798427,22.95088349,1253.3,1253.0,3.89347036]
[1672889798599,27.42292654,1253.3,1253.0,3.83299717]
[1672889799019,11.46492654,1253.3,1253.0,11.81373717]
[1672889799379,3.48592654,1253.3,1253.0,19.85505036]
[1672889799559,3.4247414,1253.3,1253.0,19.85505036]
[1672889799773,3.4247414,1253.3,1253.0,27.83589036]
[1672889801669,3.4247414,1253.3,1253.0,19.85505036]
[1672889805291,3.4247414,1253.3,1253.0,27.83589036]
[1672889807019,3.42077227,1253.3,1253.0,27.83589036]
[1672889808425,19.30697445,1253.4,1253.0,34.46297093]
[1672889808961,15.29152723,1253.4,1253.0,34.46297093]
[1672889809286,19.79152723,1253.4,1253.0,34.46297093]
[1672889809612,15.29152723,1253.4,1253.0,34.46297093]
[1672889810955,19.79152723,1253.4,1253.0,34.46297093]
[1672889811189,15.29152723,1253.4,1253.0,34.46297093]
[1672889813016,18.72052723,1253.4,1253.0,34.46297093]
[1672889814871,18.72052723,1253.4,1253.0,34.47845737]
[1672889815077,15.29152723,1253.4,1253.0,34.47845737]
[1672889816086,13.76452723,1253.4,1253.0,34.47845737]
[1672889817076,0.05,1253.2,1253.0,34.47845737]
[1672889817238,13.76452723,1253.4,1253.0,34.47845737]
[1672889821350,21.74290723,1253.4,1253.0,34.47845737]
[1672889821750,13.76452723,1253.4,1253.0,34.47845737]
[1672889823496,13.76452723,1253.4,1253.0,47.49330679]
[1672889823814,10.19638514,1253.4,1253.1,1.98087893]
[1672889823982,10.19638514,1253.4,1253.2,23.93871]
[1672889824188,10.19638514,1253.4,1253.2,23.99918319]
[1672889827240,0.06118514,1253.4,1253.2,23.99918319]
[1672889827449,11.82398514,1253.5,1253.4,15.95658]
[1672889827643,0.06118514,1253.5,1253.4,23.99534319]
[1672889827861,13.51202723,1253.6,1253.4,23.99534319]
[1672889828699,13.51202723,1253.6,1253.4,3.55783851]
[1672889828904,13.51202723,1253.6,1253.4,3.49736532]
[1672889829120,13.51202723,1253.6,1253.4,7.97819]
[1672889829325,13.51202723,1253.6,1253.4,8.03592522]
[1672889829809,13.51202723,1253.6,1253.4,0.06047319]
[1672889830162,3.56814209,1253.5,1253.3,3.06047319]
[1672889830296,15.95658,1253.4,1253.2,3.06047319]
[1672889830662,16.01776514,1253.4,1253.2,3.0]
[1672889830900,23.99605514,1253.4,1253.2,3.0]
[1672889831451,16.01776514,1253.4,1253.2,3.0]
[1672889831711,8.03947514,1253.4,1253.2,3.0]
[1672889832338,0.06118514,1253.4,1253.2,3.0]
[1672889832509,7.97832,1253.4,1253.2,3.0]
[1672889832720,8.03950514,1253.4,1253.2,3.0]
[1672889833136,19.58596723,1253.4,1253.2,3.0]
[1672889833422,21.38420209,1253.4,1253.2,3.0]
[1672889833932,13.40598209,1253.4,1253.1,5.25848818]
[1672889834077,32.25990209,1253.4,1253.1,0.07668818]
[1672889834286,32.25990209,1253.4,1253.1,3.01621499]
[1672889835754,32.25990209,1253.4,1253.1,3.04655499]
[1672889836383,40.23832209,1253.4,1253.1,3.04655499]
[1672889836847,7.97957,1253.2,1253.1,0.03034]
[1672889837033,8.04075514,1253.2,1253.1,0.03034]
[1672889837254,1.26118514,1253.2,1253.0,3.90368717]
[1672889837466,1.2,1253.2,1253.0,3.83299717]
[1672889839290,27.56707723,1253.3,1253.0,3.83299717]
[1672889839444,32.86667389,1253.3,1253.0,3.83299717]
[1672889839650,32.91667389,1253.3,1253.0,3.83299717]
[1672889839885,32.86667389,1253.3,1253.0,3.83299717]
[1672889840337,11.60840723,1253.3,1253.0,3.83299717]
[1672889841971,11.60840723,1253.3,1253.0,11.81370717]
[1672889842240,0.06118514,1253.3,1253.0,19.85502036]
[1672889842566,24.88028209,1253.4,1253.0,27.83586036]
[1672889842701,16.90186209,1253.4,1253.0,27.83586036]
[1672889844034,24.88025209,1253.4,1253.0,27.83586036]
[1672889845858,40.83703209,1253.4,1253.0,3.89347036]
[1672889846124,40.83703209,1253.4,1253.0,11.81380717]
[1672889846277,40.83703209,1253.4,1253.0,11.87428036]
[1672889846492,40.83703209,1253.4,1253.0,19.85512036]
[1672889846493,32.85864209,1253.4,1253.0,19.85512036]
[1672889846692,24.88025209,1253.4,1253.0,19.85512036]
[1672889846907,16.90186209,1253.4,1253.0,27.83596036]
[1672889847973,32.85894209,1253.4,1253.0,11.87428036]
[1672889849546,32.85894209,1253.4,1253.0,11.87214616]
[1672889849836,24.88040209,1253.4,1253.0,27.83382616]
[1672889850002,16.90186209,1253.4,1253.0,27.83382616]
[1672889850428,16.30306209,1253.4,1253.0,27.83382616]
[1672889852319,24.28150209,1253.4,1253.0,19.85298616]
[1672889852530,16.30306209,1253.4,1253.0,31.82297567]
[1672889852723,10.93668514,1253.4,1253.1,4.5]
[1672889852932,10.93668514,1253.4,1253.2,23.93871]
[1672889853138,10.93668514,1253.4,1253.2,23.99918319]
[1672889853601,10.93668514,1253.4,1253.2,8.04004319]
[1672889853829,10.93668514,1253.4,1253.2,17.27361751]
[1672889853983,10.93668514,1253.4,1253.2,25.25318751]
[1672889859495,10.93668514,1253.4,1253.2,25.25118751]
[1672889859656,10.93668514,1253.4,1253.2,25.25318751]
[1672889859882,0.06118514,1253.4,1253.2,29.24233702]
[1672889860094,14.45992723,1253.5,1253.2,29.24233702]
[1672889860361,10.89178514,1253.5,1253.2,29.24233702]
[1672889860584,14.45992723,1253.5,1253.2,29.24233702]
[1672889860732,10.89178514,1253.5,1253.2,29.24233702]
[1672889860942,14.45992723,1253.5,1253.2,29.24233702]
[1672889861363,10.89178514,1253.5,1253.2,29.24233702]
[1672889862303,14.45992723,1253.5,1253.2,29.24233702]
[1672889863702,10.89178514,1253.5,1253.2,29.24233702]
[1672889864362,0.05,1253.4,1253.2,29.24233702]
[1672889864507,10.89178514,1253.5,1253.2,29.24233702]
[1672889866355,0.06118514,1253.5,1253.3,3.98914951]
[1672889866505,0.06118514,1253.6,1253.5,4.5]
[1672889866716,25.31272723,1253.8,1253.5,23.45532]
[1672889866921,25.31272723,1253.8,1253.5,19.01579319]
[1672889867191,29.92403861,1253.8,1253.5,23.99345319]
[1672889868466,25.31272723,1253.8,1253.5,23.99345319]
[1672889869343,21.74458514,1253.8,1253.5,23.99345319]
[1672889870295,21.74458514,1253.8,1253.5,16.01579319]
[1672889870738,25.31272723,1253.8,1253.5,16.01188811]
[1672889870920,25.31272723,1253.8,1253.5,19.01188811]
[1672889871135,21.74458514,1253.8,1253.5,29.74336355]
[1672889871345,10.01858514,1253.8,1253.7,7.97638]
[1672889871592,10.01858514,1253.8,1253.7,8.03685319]
[1672889872000,10.01858514,1253.8,1253.7,16.01323319]
[1672889872429,0.06118514,1253.8,1253.7,16.01323319]
[1672889872638,0.07285206,1253.9,1253.7,23.98961319]
[1672889873102,0.07285206,1253.9,1253.7,16.01323319]
[1672889873413,0.07285206,1253.9,1253.7,8.03685319]
[1672889873789,0.07285206,1253.9,1253.7,23.98961319]
[1672889874205,0.07285206,1253.9,1253.7,16.01323319]
[1672889874587,0.07285206,1253.9,1253.8,3.98914951]
[1672889874751,0.07285206,1253.9,1253.8,30.93341381]
[1672889875036,0.07285206,1253.9,1253.8,30.993887]
[1672889876645,0.07285206,1253.9,1253.8,31.013907]
[1672889876942,0.07285206,1253.9,1253.8,23.038157]
[1672889877192,0.07285206,1253.9,1253.8,18.28926113]
[1672889877403,0.07285206,1253.9,1253.8,26.26501113]
[1672889877569,0.07285206,1253.9,1253.8,10.31351113]
[1672889877785,0.07285206,1253.9,1253.8,14.81351113]
[1672889878304,0.07285206,1253.9,1253.8,48.24076113]
[1672889880060,0.07285206,1253.9,1253.8,48.23876113]
[1672889880357,0.07285206,1253.9,1253.8,32.28926113]
[1672889880572,0.07285206,1253.9,1253.8,40.26501113]
[1672889881492,0.07285206,1253.9,1253.8,24.31151113]
[1672889881696,0.07285206,1253.9,1253.8,45.013907]
[1672889885805,0.07089011,1254.0,1253.8,45.013907]